bitfinex-derivatives/quotes_BTCF0:USTF0_20250117
["timestamp","ask_amount","ask_price","bid_price","bid_amount"]
[1737104137197,0.43051989,102280.0,102270.0,0.048897]
[1737104137404,0.20341989,102280.0,102270.0,0.50231126]
[1737104138203,0.08426089,102280.0,102270.0,0.59492552]
[1737104138409,0.08426089,102280.0,102270.0,0.59959469]
[1737104138713,0.08426089,102280.0,102270.0,0.50231126]
[1737104138911,0.55538608,102290.0,102280.0,0.048893]
[1737104138912,8.62e-05,102290.0,102280.0,0.048893]
[1737104139205,8.62e-05,102290.0,102280.0,0.50230726]
[1737104139715,8.62e-05,102290.0,102280.0,0.409693]
[1737104139906,0.2239862,102290.0,102280.0,0.409693]
[1737104140212,0.2239862,102290.0,102280.0,0.50230726]
[1737104142111,0.2239862,102290.0,102280.0,0.409693]
[1737104143707,0.048897,102280.0,102270.0,0.3608]
[1737104143908,0.1107862,102290.0,102270.0,0.54602852]
[1737104144111,0.1107862,102290.0,102280.0,0.409697]
[1737104144310,0.1107862,102290.0,102280.0,0.50231126]
[1737104145505,0.1107862,102290.0,102270.0,0.50231526]
[1737104145506,0.5204782,102290.0,102270.0,0.50231526]
[1737104145701,0.5204782,102290.0,102280.0,0.09261426]
[1737104145915,0.4715862,102290.0,102280.0,0.14151126]
[1737104146309,0.1107862,102290.0,102280.0,0.14151126]
[1737104147502,0.4715862,102290.0,102280.0,0.14151126]
[1737104147704,0.5204782,102290.0,102280.0,0.14151126]
[1737104147904,0.5204782,102290.0,102280.0,0.048897]
[1737104148310,0.61309246,102290.0,102270.0,0.50231526]
[1737104148618,0.5204782,102290.0,102270.0,0.50231526]
[1737104150110,0.5204782,102290.0,102280.0,0.048897]
[1737104150311,0.5204782,102290.0,102280.0,0.14151126]
[1737104150614,0.1107862,102290.0,102280.0,0.14151126]
[1737104153319,8.62e-05,102290.0,102280.0,0.14151126]
[1737104153521,8.62e-05,102290.0,102280.0,0.72441126]
[1737104156525,8.62e-05,102290.0,102280.0,0.048897]
[1737104156716,0.048897,102280.0,102270.0,0.048901]
[1737104156913,0.409697,102280.0,102270.0,0.14151626]
[1737104157127,0.048897,102280.0,102270.0,0.14151626]
[1737104157421,0.4097802,102290.0,102280.0,0.048897]
[1737104158921,0.4097802,102290.0,102280.0,0.14151126]
[1737104159616,0.4097802,102290.0,102280.0,0.048897]
[1737104160822,0.048897,102280.0,102270.0,0.048901]
[1737104161015,0.409697,102280.0,102270.0,0.048901]
[1737104161229,0.526497,102280.0,102270.0,0.048901]
[1737104161415,0.639197,102280.0,102270.0,0.048901]
[1737104162025,0.747997,102280.0,102270.0,0.048901]
[1737104162625,0.84061126,102280.0,102260.0,0.68261426]
[1737104162828,0.048902,102270.0,102260.0,0.409706]
[1737104163125,0.14151626,102270.0,102260.0,0.409706]
[1737104163422,0.50231626,102270.0,102260.0,0.048906]
[1737104164922,0.048902,102270.0,102260.0,0.048906]
[1737104165127,0.048902,102270.0,102260.0,0.409706]
[1737104165619,0.50231626,102270.0,102260.0,0.048906]
[1737104166016,0.50231626,102270.0,102250.0,1.45232526]
[1737104166219,0.50231626,102270.0,102250.0,1.3643503]
[1737104166716,0.50231626,102270.0,102240.0,0.40468218]
[1737104166717,0.048912,102250.0,102240.0,0.40468218]
[1737104167013,0.50232626,102250.0,102240.0,0.40468218]
[1737104167323,0.85272626,102250.0,102240.0,0.40321531]
[1737104168122,0.048916,102240.0,102220.0,0.34561313]
[1737104168322,0.50233526,102230.0,102220.0,0.34561313]
[1737104168627,0.50233526,102230.0,102220.0,0.17412484]
[1737104169933,0.048926,102220.0,102210.0,0.048931]
[1737104170228,0.409726,102220.0,102210.0,0.048931]
[1737104170830,0.50234026,102220.0,102210.0,0.048931]
[1737104171126,0.409726,102220.0,102210.0,0.048931]
[1737104171718,0.048931,102210.0,102200.0,0.273135]
[1737104171922,0.50234526,102210.0,102200.0,0.1117]
[1737104173528,0.048936,102200.0,102190.0,0.00146755]
[1737104173833,0.50235026,102200.0,102190.0,0.00146755]
[1737104174022,0.50235026,102200.0,102190.0,0.09408181]
[1737104174023,0.409736,102200.0,102190.0,0.09408181]
[1737104174225,0.519932,102210.0,102190.0,0.50382181]
[1737104174525,0.519932,102210.0,102190.0,0.14302181]
[1737104174721,0.519932,102210.0,102200.0,0.048936]
[1737104174924,0.61254626,102210.0,102200.0,0.048936]
[1737104176530,0.61254626,102210.0,102190.0,0.05040655]
[1737104176729,0.3608,102200.0,102190.0,0.14302081]
[1737104176933,0.50235026,102200.0,102190.0,0.00146755]
[1737104177232,0.04894,102190.0,102180.0,0.160945]
[1737104177428,0.50235426,102190.0,102180.0,0.112]
[1737104180026,0.048945,102180.0,102170.0,0.1088]
[1737104180221,0.50235926,102180.0,102160.0,0.638552]
[1737104180429,0.50235926,102180.0,102160.0,1.588552]
[1737104180827,0.50235926,102180.0,102160.0,1.227752]
[1737104181039,0.50235926,102180.0,102160.0,0.277752]
[1737104181424,0.50235926,102180.0,102160.0,1.27141426]
[1737104181628,0.50235926,102180.0,102170.0,0.04895]
[1737104183431,0.50235926,102180.0,102160.0,0.2288]
[1737104183637,0.50235926,102180.0,102160.0,0.277752]
[1737104184335,0.50235926,102180.0,102160.0,0.638552]
[1737104184530,0.50235926,102180.0,102160.0,0.277752]
[1737104185831,0.409741,102190.0,102170.0,0.09261426]
[1737104186039,0.50235526,102190.0,102180.0,0.166745]
[1737104186228,0.50235526,102190.0,102180.0,0.048945]
[1737104186831,0.45341426,102190.0,102180.0,0.048945]
[1737104191031,0.3608,102190.0,102180.0,0.048945]
[1737104191234,0.45341426,102190.0,102180.0,0.048945]
[1737104191535,0.3608,102190.0,102180.0,0.048945]
[1737104191729,0.45341426,102190.0,102180.0,0.048945]
[1737104193142,0.3608,102190.0,102180.0,0.048945]
[1737104193531,0.45341426,102190.0,102180.0,0.048945]
[1737104194029,0.3608,102190.0,102180.0,0.048945]
[1737104195841,0.45341426,102190.0,102180.0,0.048945]
[1737104196636,0.3608,102190.0,102180.0,0.048945]
[1737104197031,0.3608,102190.0,102180.0,0.14155926]
[1737104197340,0.3608,102190.0,102180.0,0.048945]
[1737104197927,0.3608,102210.0,102200.0,0.048935]
[1737104198134,0.3608,102210.0,102200.0,0.14154926]
[1737104198340,0.61730972,102220.0,102210.0,0.048931]
[1737104200235,0.47576846,102220.0,102210.0,0.048931]
[1737104200434,0.36226846,102220.0,102210.0,0.14154526]
[1737104200649,0.3608,102220.0,102210.0,0.05368175]
[1737104202245,0.3608,102220.0,102210.0,0.05373056]
[1737104202632,0.3608,102220.0,102210.0,0.05372991]
[1737104202836,0.3608,102220.0,102210.0,0.06142576]
[1737104203247,0.45341426,102220.0,102210.0,0.05372991]
[1737104203940,0.50234026,102220.0,102210.0,0.05372991]
[1737104204444,0.50234026,102220.0,102210.0,0.00479891]
[1737104204647,0.3608,102220.0,102210.0,0.05372991]
[1737104205039,0.50234026,102220.0,102210.0,0.00479891]
[1737104206537,0.50234026,102220.0,102200.0,0.048934]
[1737104206847,0.50234026,102220.0,102200.0,0.06146957]
[1737104207345,0.50234026,102220.0,102200.0,0.05375481]
[1737104207735,0.61754026,102220.0,102200.0,0.05375481]
[1737104208137,0.73454026,102220.0,102200.0,0.048934]
[1737104208337,0.73454026,102220.0,102200.0,0.05375691]
[1737104208549,0.641926,102220.0,102200.0,0.14637117]
[1737104209050,0.3608,102220.0,102210.0,0.048931]
[1737104209240,0.409721,102230.0,102220.0,0.048926]
[1737104209639,0.409721,102230.0,102220.0,0.05374798]
[1737104209846,0.3608,102230.0,102220.0,0.14154026]
[1737104210045,0.6798686,102250.0,102220.0,0.80712324]
[1737104210346,0.2051686,102250.0,102240.0,0.50233026]
[1737104210549,0.20370093,102250.0,102240.0,0.50233026]
[1737104211248,0.56450093,102260.0,102250.0,0.048912]
[1737104211439,0.20370093,102260.0,102250.0,0.26002626]
[1737104211639,0.20370093,102260.0,102250.0,0.167412]
[1737104211942,0.20370093,102260.0,102250.0,0.73792626]
[1737104212443,0.09261426,102270.0,102250.0,0.73792626]
[1737104212643,1.28169207,102280.0,102250.0,0.73792626]
[1737104213243,1.04921219,102280.0,102250.0,0.73792626]
[1737104213448,1.04921219,102280.0,102250.0,0.32821426]
[1737104213652,1.04921219,102280.0,102260.0,0.048906]
[1737104215744,0.3608,102270.0,102260.0,0.048906]
[1737104216047,0.45341426,102270.0,102260.0,0.048906]
[1737104217250,0.3608,102270.0,102260.0,0.048906]
[1737104220751,0.50231626,102270.0,102260.0,0.048906]
[1737104220948,0.409702,102270.0,102260.0,0.048906]
[1737104221847,0.53322663,102280.0,102260.0,0.14152026]
[1737104222052,0.62584089,102280.0,102260.0,0.048906]
[1737104222743,0.3608,102270.0,102260.0,0.048906]
[1737104222949,0.62584089,102280.0,102260.0,0.048906]
[1737104223144,0.3608,102270.0,102260.0,0.048906]
[1737104224254,0.61621326,102280.0,102260.0,0.048906]
[1737104224448,0.3608,102270.0,102260.0,0.048906]
[1737104224650,0.61621326,102280.0,102260.0,0.14152026]
[1737104224848,0.523599,102280.0,102260.0,0.14152026]
[1737104226849,0.61621326,102280.0,102260.0,0.14152026]
[1737104227658,0.3608,102270.0,102260.0,0.14152026]
[1737104227863,0.3608,102270.0,102260.0,0.048906]
[1737104228955,0.50232126,102270.0,102250.0,0.048911]
[1737104229148,0.3608,102260.0,102250.0,0.14152526]
[1737104229353,0.520007,102270.0,102250.0,0.14152526]
[1737104229553,0.520007,102270.0,102260.0,0.14152126]
[1737104229554,0.409707,102270.0,102260.0,0.14152126]
[1737104229952,0.048907,102270.0,102260.0,0.14152126]
[1737104230253,0.523598,102280.0,102260.0,0.14152126]
[1737104230459,0.523598,102280.0,102270.0,0.09261426]
[1737104230758,0.1139,102280.0,102270.0,0.14151626]
[1737104230959,0.64938544,102290.0,102270.0,0.14151626]
[1737104233058,0.64938544,102290.0,102270.0,0.50231626]
[1737104233346,0.41938544,102290.0,102280.0,0.09261426]
[1737104233551,0.41938544,102290.0,102280.0,0.14151126]
[1737104233850,0.37049144,102290.0,102280.0,0.14151126]
[1737104234056,0.37049144,102290.0,102280.0,0.50231126]
[1737104234057,8.62e-05,102290.0,102280.0,0.50231126]
[1737104235855,0.2042326,102290.0,102280.0,0.50231126]
[1737104237164,8.62e-05,102290.0,102280.0,0.50231126]
[1737104240053,0.50239546,102290.0,102270.0,0.0489]
[1737104240352,0.45341426,102280.0,102270.0,0.0489]
[1737104240558,0.50231426,102280.0,102260.0,1.36730026]
[1737104240762,0.4097,102280.0,102260.0,1.36730026]
[1737104241353,0.4097,102280.0,102260.0,0.913886]
[1737104241354,0.50231426,102280.0,102260.0,0.913886]
[1737104241556,0.50231426,102280.0,102260.0,0.387806]
[1737104243058,0.50231426,102280.0,102260.0,0.48042026]
[1737104243467,0.70646066,102280.0,102260.0,0.387806]
[1737104245260,0.09261426,102270.0,102260.0,0.164906]
[1737104245465,0.14151626,102270.0,102260.0,0.164906]
[1737104246261,0.048902,102270.0,102260.0,0.164906]
[1737104246466,0.50231626,102270.0,102260.0,0.048906]
[1737104246665,0.409702,102270.0,102260.0,0.048906]
[1737104247062,0.50231626,102270.0,102250.0,0.2377]
[1737104247259,0.409707,102260.0,102250.0,0.16581]
[1737104247464,0.50232126,102260.0,102250.0,0.16581]
[1737104247664,0.61872126,102260.0,102250.0,0.16581]
[1737104247863,0.526107,102260.0,102250.0,0.16581]
[1737104248868,0.61872126,102260.0,102250.0,0.16581]
[1737104249069,0.85201168,102260.0,102250.0,0.16581]
[1737104249461,0.39859742,102260.0,102250.0,0.16581]
[1737104249863,0.34969042,102260.0,102250.0,0.25842426]
[1737104250264,0.1164,102260.0,102250.0,0.25842426]
[1737104250463,1.04302215,102270.0,102250.0,0.16581]
[1737104250671,0.50232126,102260.0,102240.0,0.68901426]
[1737104250974,0.048907,102260.0,102250.0,0.048912]
[1737104252268,0.89179985,102270.0,102250.0,0.50232626]
[1737104252570,1.23806661,102270.0,102250.0,0.14152626]
[1737104252765,1.14545235,102270.0,102260.0,0.048907]
[1737104252970,0.78465235,102270.0,102260.0,0.048907]
[1737104253271,0.87726661,102270.0,102260.0,0.048907]
[1737104253972,0.54425235,102270.0,102260.0,0.048907]
[1737104254184,0.54425235,102270.0,102260.0,0.164407]
[1737104254778,0.49535035,102270.0,102260.0,0.61782126]
[1737104255181,0.78634199,102270.0,102260.0,0.61782126]
[1737104255870,0.78634199,102270.0,102260.0,0.525207]
[1737104256071,0.29771715,102270.0,102260.0,0.525207]
[1737104256281,0.29771715,102270.0,102260.0,0.61782126]
[1737104257183,0.25281226,102280.0,102260.0,0.56891426]
[1737104257379,0.160198,102280.0,102270.0,0.048902]
[1737104258383,0.160198,102280.0,102270.0,0.409702]
[1737104258771,0.048898,102280.0,102270.0,0.409702]
[1737104258976,1.35346726,102290.0,102270.0,0.409702]
[1737104259676,1.35346726,102290.0,102270.0,0.50231626]
[1737104259877,0.99266726,102290.0,102280.0,0.3608]
[1737104260077,0.900053,102290.0,102280.0,0.048897]
[1737104260282,0.900053,102290.0,102280.0,0.409697]
[1737104260283,0.99266726,102290.0,102280.0,0.409697]
[1737104260483,0.55466146,102290.0,102280.0,0.409697]
[1737104260792,0.4131532,102290.0,102280.0,0.409697]
[1737104261286,0.2921532,102290.0,102280.0,0.409697]
[1737104261682,0.00155335,102290.0,102280.0,0.409697]
[1737104262582,0.00155335,102290.0,102280.0,0.50231126]
[1737104263190,0.00155335,102290.0,102280.0,0.409697]
[1737104266193,0.14305961,102290.0,102280.0,0.048897]
[1737104266592,0.14305961,102290.0,102270.0,0.048901]
[1737104266593,0.048897,102280.0,102270.0,0.048901]
[1737104266789,0.048902,102270.0,102260.0,0.164405]
[1737104267189,0.048902,102270.0,102260.0,0.25701926]
[1737104267897,0.048902,102270.0,102260.0,0.164405]
[1737104271087,0.14151626,102270.0,102260.0,0.164405]
[1737104271287,0.048902,102270.0,102260.0,0.164405]
[1737104273400,0.28219242,102270.0,102260.0,0.164405]
[1737104274195,0.37480668,102270.0,102260.0,0.164405]
[1737104275897,0.6372584,102270.0,102260.0,0.164405]
[1737104276605,0.54464414,102270.0,102260.0,0.164405]
[1737104276907,0.6372584,102270.0,102260.0,0.164405]
[1737104279309,0.40396798,102270.0,102260.0,0.164405]
[1737104282405,0.31135372,102270.0,102260.0,0.164405]
[1737104282607,0.40396798,102270.0,102260.0,0.164405]
[1737104282802,0.84223617,102270.0,102260.0,0.164405]
[1737104283007,0.048911,102260.0,102240.0,0.409715]
[1737104283202,0.25972526,102260.0,102240.0,0.527215]
[1737104283413,0.25972526,102260.0,102240.0,0.61982926]
[1737104283710,0.25972526,102260.0,102240.0,0.166415]
[1737104283711,0.048912,102250.0,102240.0,0.166415]
[1737104284108,0.527908,102260.0,102240.0,0.25902926]
[1737104284307,0.527908,102260.0,102240.0,0.61982926]
[1737104284510,0.62052226,102260.0,102240.0,0.166415]
[1737104285911,0.50232626,102250.0,102230.0,0.59216716]
[1737104286207,0.14153026,102240.0,102220.0,0.526224]
[1737104286414,0.409716,102240.0,102220.0,0.61883826]
[1737104286598,0.409716,102240.0,102230.0,0.048921]
[1737104288610,0.89168245,102240.0,102220.0,0.4773]
[1737104288818,0.89168245,102240.0,102220.0,0.526225]
[1737104288819,0.09261426,102230.0,102220.0,0.526225]
[1737104289106,0.409721,102230.0,102220.0,0.165425]
[1737104289315,0.50233526,102230.0,102220.0,0.1165]
[1737104289699,0.62503526,102230.0,102220.0,0.1165]
[1737104289912,0.532421,102230.0,102220.0,0.1165]
[1737104290807,0.048926,102220.0,102210.0,0.593]
[1737104291199,0.048926,102220.0,102210.0,0.68561426]
[1737104291710,0.048926,102220.0,102210.0,0.593]
[1737104292916,0.048926,102220.0,102210.0,0.68561426]
[1737104293105,0.532421,102230.0,102210.0,0.73454326]
[1737104293306,0.532421,102230.0,102220.0,0.09261426]
[1737104293600,0.532421,102230.0,102210.0,0.73454326]
[1737104300320,0.171621,102230.0,102220.0,0.048926]
[1737104301622,0.62503526,102230.0,102220.0,0.048926]
[1737104302216,0.532421,102230.0,102220.0,0.048926]
[1737104303235,0.532421,102230.0,102210.0,0.641931]
[1737104303236,0.62503526,102230.0,102210.0,0.641931]
[1737104303522,0.09261426,102220.0,102210.0,0.641931]
[1737104303913,0.14154026,102220.0,102210.0,0.4772]
[1737104304109,0.14154026,102220.0,102210.0,0.3608]
[1737104306629,0.048926,102220.0,102210.0,0.3608]
[1737104307830,0.7473387,102230.0,102210.0,0.50234026]
[1737104308126,0.7473387,102230.0,102220.0,0.048926]
[1737104308127,0.3865387,102230.0,102220.0,0.048926]
[1737104308628,0.47915296,102230.0,102220.0,0.048926]
[1737104309030,0.27417519,102230.0,102220.0,0.048926]
[1737104309221,0.63497519,102230.0,102220.0,0.048926]
[1737104309729,0.27417519,102230.0,102220.0,0.048926]
[1737104309926,0.63497519,102230.0,102220.0,0.048926]
[1737104312121,0.27417519,102230.0,102220.0,0.048926]
[1737104312324,0.63497519,102230.0,102220.0,0.048926]
[1737104312728,0.27417519,102230.0,102220.0,0.048926]
[1737104314031,0.18156093,102230.0,102220.0,0.048926]
[1737104314236,0.18156093,102230.0,102220.0,0.169826]
[1737104314529,0.05886093,102230.0,102220.0,0.169826]
[1737104315029,0.048922,102230.0,102220.0,0.169826]
[1737104317726,0.94879454,102240.0,102220.0,0.21351426]
[1737104317941,0.64300842,102240.0,102230.0,0.048921]
[1737104318132,0.64300842,102240.0,102230.0,0.172821]
[1737104318932,0.409718,102240.0,102230.0,0.172821]
[1737104319420,0.3608,102240.0,102230.0,0.172821]
[1737104320132,0.50233026,102240.0,102230.0,0.172821]
[1737104322324,0.14153026,102240.0,102230.0,0.172821]
[1737104322529,0.048916,102240.0,102230.0,0.172821]
[1737104323034,0.048916,102240.0,102230.0,0.533621]
[1737104323227,0.78989294,102250.0,102230.0,0.74343526]
[1737104323228,0.74619168,102250.0,102230.0,0.74343526]
[1737104323429,0.86663215,102250.0,102240.0,0.163816]
[1737104324530,0.92394158,102250.0,102240.0,0.163816]
[1737104325446,0.92394158,102250.0,102240.0,0.048916]
[1737104325641,0.048921,102230.0,102220.0,0.170525]
[1737104325840,0.50233526,102230.0,102220.0,0.170525]
[1737104326641,0.73700327,102230.0,102220.0,0.170525]
[1737104331443,0.73700327,102230.0,102220.0,0.1216]
[1737104331644,0.9423276,102230.0,102220.0,0.1216]
[1737104331828,1.0672276,102230.0,102220.0,0.1216]
[1737104335235,1.0183066,102230.0,102220.0,0.1216]
[1737104335540,1.0672276,102230.0,102220.0,0.1216]
[1737104335742,0.48891334,102230.0,102220.0,0.170526]
[1737104336433,0.84971334,102230.0,102220.0,0.170526]
[1737104337147,0.9423276,102230.0,102220.0,0.170526]
[1737104337445,0.84971334,102230.0,102220.0,0.170526]
[1737104337647,0.85965985,102230.0,102220.0,0.170526]
[1737104338747,0.7176061,102230.0,102220.0,0.170526]
[1737104339139,0.3568061,102230.0,102220.0,0.170526]
[1737104340747,0.3568061,102230.0,102220.0,0.531326]
[1737104340947,0.05886751,102230.0,102220.0,0.531326]
[1737104341348,0.15148177,102230.0,102220.0,0.531326]
[1737104341553,0.15148177,102230.0,102220.0,0.170526]
[1737104341847,0.05886751,102230.0,102220.0,0.170526]
[1737104343547,0.00994651,102230.0,102220.0,0.26314026]
[1737104343740,0.50233226,102240.0,102220.0,0.21421426]
[1737104343939,0.50233226,102240.0,102230.0,0.048921]
[1737104344140,0.9423246,102240.0,102230.0,0.048921]
[1737104345649,0.74674791,102240.0,102230.0,0.048921]
[1737104346752,0.77608141,102240.0,102230.0,0.048921]
[1737104351455,0.048921,102230.0,102220.0,0.170524]
[1737104352748,0.28353351,102230.0,102220.0,0.170524]
[1737104353154,0.28353351,102230.0,102220.0,0.531324]
[1737104353355,0.34389013,102230.0,102220.0,0.59168062]
[1737104353858,0.10927762,102230.0,102220.0,0.23088062]
[1737104358459,0.10927762,102230.0,102220.0,0.170524]
[1737104358863,0.10927762,102230.0,102220.0,0.23088062]
[1737104359064,0.31457141,102230.0,102220.0,0.170524]
[1737104361465,0.34389013,102230.0,102220.0,0.170524]
[1737104361851,0.34389013,102230.0,102220.0,0.23088062]
[1737104362865,0.4724832,102230.0,102220.0,0.23088062]
[1737104363758,0.34389013,102230.0,102220.0,0.23088062]
[1737104364066,0.34389013,102230.0,102220.0,0.170524]
[1737104364971,0.60789164,102230.0,102220.0,0.170524]
[1737104366066,0.37327913,102230.0,102220.0,0.170524]
[1737104366768,0.31292251,102230.0,102220.0,0.170524]
[1737104366974,0.37327913,102230.0,102220.0,0.170524]
[1737104367474,0.50187226,102230.0,102220.0,0.170524]
[1737104368366,0.44151564,102230.0,102220.0,0.170524]
[1737104368568,0.25448968,102230.0,102220.0,0.170524]
[1737104368875,0.61528968,102230.0,102220.0,0.170524]
[1737104370277,0.6756463,102230.0,102220.0,0.170524]
[1737104370485,0.3148463,102230.0,102220.0,0.170524]
[1737104370683,0.6756463,102230.0,102220.0,0.1216]
[1737104374179,0.70501326,102230.0,102220.0,0.1216]
[1737104375785,0.70501326,102230.0,102220.0,0.170526]
[1737104376391,0.34421326,102230.0,102220.0,0.170526]
[1737104377285,0.70501326,102230.0,102220.0,0.170526]
[1737104377987,0.82521326,102230.0,102220.0,0.170526]
[1737104378175,0.59027762,102230.0,102220.0,0.170526]
[1737104381786,0.82514718,102230.0,102220.0,0.170526]
[1737104383673,0.82514718,102230.0,102220.0,0.1216]
[1737104383877,0.048926,102220.0,102210.0,0.29646459]
[1737104384087,0.47008262,102220.0,102210.0,0.35682121]
[1737104384784,0.67560558,102220.0,102210.0,0.35682121]
[1737104385389,0.67560558,102220.0,102210.0,0.29646459]
[1737104385884,0.67560558,102220.0,102210.0,0.286629]
[1737104386091,0.048931,102210.0,102200.0,0.526434]
[1737104386294,0.67560758,102220.0,102210.0,0.048931]
[1737104387991,0.31480758,102220.0,102210.0,0.048931]
[1737104388193,0.67560758,102220.0,102210.0,0.048931]
[1737104389886,0.7359642,102220.0,102210.0,0.048931]
[1737104391285,0.47008462,102220.0,102210.0,0.048931]
[1737104394290,0.73431287,102220.0,102210.0,0.048931]
[1737104394690,0.7440941,102220.0,102210.0,0.048931]
[1737104394895,0.7440941,102220.0,102210.0,0.171131]
[1737104395590,0.7145413,102220.0,102210.0,0.171131]
[1737104396792,0.68520092,102220.0,102210.0,0.171131]
[1737104398391,0.6248443,102220.0,102210.0,0.23148762]
[1737104398607,0.2151163,102220.0,102210.0,0.23148762]
[1737104399092,0.07013785,102220.0,102210.0,0.23148762]
[1737104399897,0.07013785,102220.0,102210.0,0.171131]
[1737104400396,0.54022047,102220.0,102210.0,0.171131]
[1737104400591,0.11906385,102220.0,102210.0,0.171131]
[1737104401000,1.28883354,102230.0,102220.0,0.048926]
[1737104401193,1.28883354,102230.0,102220.0,0.282326]
[1737104401883,1.29878935,102230.0,102220.0,0.282326]
[1737104402501,1.09345428,102230.0,102220.0,0.282326]
[1737104404294,1.0081895,102230.0,102220.0,0.282326]
[1737104405701,1.15446032,102240.0,102220.0,0.17441071]
[1737104405702,0.4989037,102240.0,102220.0,0.17441071]
[1737104405896,0.5478197,102240.0,102230.0,0.770521]
[1737104406097,0.67846627,102240.0,102230.0,0.7216]
[1737104406403,1.04556627,102240.0,102230.0,0.7216]
[1737104406603,0.54666257,102240.0,102230.0,0.7216]
[1737104407597,0.48630595,102240.0,102230.0,0.3608]
[1737104407907,0.48630595,102240.0,102230.0,0.7216]
[1737104408406,0.54666257,102240.0,102230.0,0.7216]
[1737104409103,0.54666257,102240.0,102230.0,0.3608]
[1737104409299,0.048926,102220.0,102210.0,0.53505283]
[1737104409604,0.10928262,102220.0,102210.0,0.53505283]
[1737104409804,0.10928262,102220.0,102210.0,0.3608]
[1737104410205,0.16963924,102220.0,102210.0,0.3608]
[1737104410405,0.16963924,102220.0,102200.0,0.53505283]
[1737104410707,0.34968762,102210.0,102200.0,0.53505283]
[1737104410898,0.34968762,102210.0,102200.0,0.17425283]
[1737104411295,0.34968762,102210.0,102200.0,0.3608]
[1737104411698,0.41004424,102210.0,102200.0,0.3608]
[1737104412092,0.34968762,102210.0,102200.0,0.3608]
[1737104412499,0.46468762,102210.0,102200.0,0.3608]
[1737104414804,0.048935,102200.0,102190.0,0.42115662]
[1737104414999,0.10929162,102200.0,102190.0,0.3608]
[1737104415607,0.04894,102190.0,102180.0,0.60248053]
[1737104415911,0.04894,102190.0,102180.0,0.47998053]
[1737104416206,0.06035662,102200.0,102190.0,0.048939]
[1737104416207,0.048936,102200.0,102190.0,0.048939]
[1737104416414,0.10929262,102200.0,102190.0,0.3608]
[1737104417101,0.10929262,102200.0,102190.0,0.42115662]
[1737104418909,0.60819632,102200.0,102190.0,0.42115662]
[1737104419111,0.60819632,102200.0,102190.0,0.3608]
[1737104420212,0.34396807,102200.0,102190.0,0.3608]
[1737104421108,0.10929262,102200.0,102190.0,0.3608]
[1737104422513,0.048936,102200.0,102190.0,0.47009662]
[1737104422707,0.06122639,102200.0,102190.0,0.47009662]
[1737104423109,0.048936,102200.0,102190.0,0.47009662]
[1737104423615,0.61301803,102210.0,102200.0,0.048935]
[1737104423814,0.61301803,102210.0,102200.0,0.58559162]
[1737104424012,0.61301803,102210.0,102200.0,0.64594824]
[1737104424223,0.13761923,102220.0,102210.0,0.048931]
[1737104424406,0.13761923,102220.0,102190.0,0.650639]
[1737104424709,0.06104523,102220.0,102210.0,0.770531]
[1737104424908,0.10928262,102220.0,102210.0,0.7216]
[1737104425414,0.23478262,102220.0,102210.0,0.7216]
[1737104425716,0.29513924,102220.0,102210.0,0.7216]
[1737104425916,0.23478262,102220.0,102210.0,0.7216]
[1737104426312,0.23478262,102220.0,102210.0,0.83088762]
[1737104426506,0.18585662,102220.0,102210.0,0.770531]
[1737104426712,0.23478262,102220.0,102210.0,0.770531]
[1737104427110,0.29513924,102220.0,102210.0,0.770531]
[1737104427306,0.29513924,102220.0,102210.0,0.3608]
[1737104427502,0.174426,102220.0,102210.0,0.3608]
[1737104427713,0.23478262,102220.0,102210.0,0.3608]
[1737104427908,0.29513924,102220.0,102210.0,0.3608]
[1737104428417,0.048933,102210.0,102200.0,0.3608]
[1737104428617,0.048935,102200.0,102190.0,0.58399083]
[1737104428808,0.22899162,102200.0,102190.0,0.58399083]
[1737104429013,0.22899162,102200.0,102190.0,0.58875762]
[1737104429319,0.22899162,102200.0,102190.0,0.58399083]
[1737104429713,0.22899162,102200.0,102190.0,0.409738]
[1737104430220,0.168635,102200.0,102190.0,0.47009462]
[1737104431219,0.10928862,102210.0,102190.0,0.41449216]
[1737104431522,0.10928862,102210.0,102200.0,0.409735]
[1737104431818,0.2453,102220.0,102210.0,0.048931]
[1737104432017,0.36601324,102220.0,102210.0,0.409731]
[1737104432222,0.41493924,102220.0,102210.0,0.3608]
[1737104433330,0.38624375,102220.0,102210.0,0.3608]
[1737104434023,0.74704375,102220.0,102200.0,0.3608]
[1737104434217,0.14094875,102210.0,102190.0,0.64584]
[1737104434416,0.09201775,102200.0,102190.0,0.64584]
[1737104434721,0.14094875,102210.0,102190.0,0.64584]
[1737104434914,0.09201775,102200.0,102190.0,0.64584]
[1737104435929,0.14095275,102200.0,102190.0,0.64584]
[1737104436927,0.14095275,102200.0,102190.0,0.3608]
[1737104437119,0.76525645,102200.0,102190.0,0.3608]
[1737104437321,0.88335645,102200.0,102190.0,0.3608]
[1737104438234,1.08852687,102200.0,102190.0,0.3608]
[1737104438442,0.048945,102180.0,102170.0,0.41121666]
[1737104438745,0.2329805,102180.0,102170.0,0.41121666]
[1737104438943,0.14096275,102180.0,102170.0,0.41121666]
[1737104440039,0.61945875,102190.0,102170.0,0.53181666]
[1737104440239,0.61945875,102190.0,102170.0,0.65491666]
[1737104440639,0.50175875,102190.0,102170.0,0.77511666]
[1737104440946,0.50175875,102190.0,102180.0,0.048945]
[1737104441741,0.14095875,102190.0,102180.0,0.048945]
[1737104442940,0.3756342,102190.0,102180.0,0.048945]
[1737104443839,0.14095875,102190.0,102180.0,0.048945]
[1737104446147,0.048945,102180.0,102170.0,0.53181666]
[1737104446344,0.26216275,102180.0,102170.0,0.36226766]
[1737104446544,0.4756805,102180.0,102170.0,0.36226766]
[1737104446746,0.38366275,102180.0,102170.0,0.36226766]
[1737104447257,0.4756805,102180.0,102170.0,0.36226766]
[1737104447443,0.4756805,102180.0,102170.0,0.3608]
[1737104450046,0.7875355,102180.0,102160.0,0.05310982]
[1737104450247,0.14096775,102170.0,102160.0,0.05310982]
[1737104452345,0.14096775,102170.0,102160.0,0.00415582]
[1737104454450,0.14096775,102170.0,102160.0,0.41391082]
[1737104454659,0.6183392,102180.0,102160.0,0.41391082]
[1737104454959,0.6183392,102180.0,102160.0,0.62602857]
[1737104455164,0.6335656,102180.0,102160.0,0.53401082]
[1737104455361,0.23467545,102180.0,102170.0,0.40975]
[1737104455663,0.23467545,102180.0,102170.0,0.74746775]
[1737104455853,0.14095875,102190.0,102170.0,0.74746775]